Cogmind - Beta 12 @@@ ROGUE MODE // 2023.03.24 @ 21:17:28 Player: Red Box Result: Destroyed by as-25046 with Assembled Heavy Rifle Performance ------------- Evolutions (0) 0 Regions Visited (2) 400 Robots Destroyed (23) 115 Value Destroyed (551) 551 Prototype IDs (5) 100 Alien Tech Used (0) 0 Bonus (0) 0 TOTAL SCORE: 1166 Bonus ------- None Cogmind --------- Core Integrity 0/250 Matter 206/300 Energy 280/280 System Corruption 0% Temperature Cool (30) Movement Rolling (130) Ox2 Location -10/Mines Parts ------- > --- POWER (1) -------- Cooled Ion Engine > --- PROPULSION (2) --- Compact Wheel Compact Wheel > --- UTILITY (2) ------ Huge Storage Unit Light Armor Plating > --- WEAPON (2) ------- Beam Rifle Assault Rifle > --- INVENTORY (25) --- Wheel Wheel Armored Wheel Armored Wheel Armored Wheel Armored Wheel Improved Heat Sink High-capacity Battery (250) Targeting Computer Shield Generator Shield Generator Authchip [Weapon] Splice Drone Bay (6/6) Grenade Launcher Mini Grenade Launcher Heavy Hammer Peak State ------------ > --- POWER ------------ Improved Ion Engine > --- PROPULSION ------- Wheel Wheel > --- UTILITY ---------- Huge Storage Unit Splice Drone Bay > --- WEAPON ----------- EM Shotgun EM Shotgun > --- INVENTORY -------- Cooled Ion Engine Wheel Wheel Compact Wheel Compact Wheel Armored Wheel Armored Wheel Armored Wheel Armored Wheel Improved Heat Sink High-capacity Battery Targeting Computer Light Armor Plating Light Armor Plating Light Armor Plating Shield Generator Shield Generator Authchip [Weapon] EM Shotgun EM Shotgun Beam Rifle Beam Rifle Assault Rifle Grenade Launcher Heavy Hammer [Rating: 20] Favorites ----------- Power Improved Ion Engine Engine Improved Ion Engine Propulsion Wheel Leg Aluminum Leg Wheel Wheel Utility Improved Terrain Scanner Device Improved Terrain Scanner Storage Huge Storage Unit Protection Light Armor Plating Weapon EM Shotgun Energy Gun EM Shotgun Ballistic Gun Assault Rifle Launcher Grenade Launcher Special Weapon Mining Laser Build | -11 -10 -10 ------- Run | Jun Mat Min Slots Evolved . | . . . Power . | . . . Propulsion . | . . . Utility . | . . . Weapon . | . . . Parts Attached 40 | 12 13 15 Power 6 | 2 3 1 Engine 6 | 2 3 1 Core . | . . . Reactor . | . . . Propulsion 9 | 5 1 3 Treads . | . . . Leg 2 | 2 . . Wheel 7 | 3 1 3 Hover . | . . . Flight . | . . . Utility 10 | 3 3 4 Device 3 | 2 . 1 Storage 2 | 1 1 . Processor . | . . . Hackware . | . . . Protection 5 | . 2 3 Artifact . | . . . Weapon 15 | 2 6 7 Energy Gun 12 | 2 5 5 Energy Cannon . | . . . Ballistic Gun 1 | . . 1 Ballistic Cannon . | . . . Launcher 1 | . . 1 Special Weapon 1 | . 1 . Impact Weapon . | . . . Slashing Weapon . | . . . Piercing Weapon . | . . . Special Melee Weapon . | . . . Unidentified Prototypes 2 | . 1 1 Parts Lost 10 | . . 10 Power 1 | . . 1 Propulsion 2 | . . 2 Utility 2 | . . 2 Weapon 5 | . . 5 Highest Loss Streak 10 | . . 10 To Critical Strikes . | . . . Average Slot Usage (%) 99 | . 99 97 Engine 13 | . 14 13 Wheel 27 | . 28 26 Device 9 | . 11 . Storage 14 | . 14 14 Protection 4 | . 2 14 Energy Gun 26 | . 27 25 Naked Turns . | . . . Heaviest Build 96 | 15 96 96 Greatest Support 32 | 20 20 32 Greatest Overweight (x) 4 | 1 4 4 Average Overweight (x) 2 | . 2 3 Largest Inventory Capacity 25 | 8 25 25 Average Capacity 19 | 7 18 25 Most Carried 25 | 8 25 25 Average Carried 17 | 5 17 23 Final Capacity 25 | 8 25 25 Final Carried 25 | 8 25 16 Class Distribution -------------------- 94% | Mutant 5% | Scavenger-Mutant Dominant Class ---------------- Mutant | -10/Materials Mutant | -10/Mines Resources | -11 -10 -10 ----------- Run | Jun Mat Min Matter Collected 505 | 294 116 95 Remotely . | . . . Salvage Created 671 | 114 309 248 Parts 44 | 12 23 9 Haulers Intercepted . | . . . Recyclers Shooed 1 | 1 . . Parts Field Recycled . | . . . Retrieved Matter . | . . . Parts Self-Destructed . | . . . Prevented . | . . . Kills | -11 -10 -10 ------- Run | Jun Mat Min Combat Hostiles Destroyed 18 | . 9 9 Guns 15 | . 9 6 AOE 3 | . . 3 Classes Destroyed 7 | 1 4 2 Worker 1 | . 1 . Tunneler 5 | 5 . . Watcher 2 | . 2 . Swarmer 6 | . 6 . Grunt 7 | . 3 4 Demolisher 2 | . . 2 Assembled 3 | . . 3 Best Kill Streak 5 | 2 4 5 Combat Bots Only 5 | . 2 5 Max Kills in Single Turn 2 | 1 2 1 Gunslinging . | . . . Exploded 1 | . . 1 Melee . | . . . Uniques/NPCs Destroyed . | . . . Combat | -11 -10 -10 -------- Run | Jun Mat Min Damage Taken 1356 | . 289 1067 Core 260 | . 22 238 Absorbed by Shields . | . . . Regen/Repaired (Parts) 117 | . 117 . Core Remaining (%) 100 | 100 . . Volleys Fired 54 | 9 27 18 Largest 2 | 2 2 2 Hottest 101 | 100 100 101 Shots Fired 100 | 18 48 34 Gun 94 | 18 44 32 Cannon . | . . . Launcher 2 | . . 2 Special 4 | . 4 . Kinetic 8 | . . 8 Thermal 48 | 18 23 7 Explosive 2 | . . 2 Electromagnetic 42 | . 25 17 Robot Hit Streak 9 | 9 7 6 Robot Miss Streak 7 | 2 6 7 Penetration Max . | . . . Secondary Targets 1 | . 1 . Max Gunslinging Chain 1 | . 1 . Shots Hit Robots 64 | 13 25 26 Core Hits 46 | 6 17 23 Critical Kills . | . . . Critical Parts Destroyed . | . . . Critical Strikes 4 | 3 1 . Burn 4 | 3 1 . Melee Attacks . | . . . Impact . | . . . Slashing . | . . . Piercing . | . . . Sneak Attacks . | . . . Combat Hostiles . | . . . Follow-up Attacks . | . . . Damage Inflicted 1048 | 161 380 507 Guns 849 | 161 356 332 Cannons . | . . . Explosions 175 | . . 175 Melee . | . . . Ramming . | . . . Kinetic 36 | . . 36 Thermal 416 | 161 98 157 Explosive 90 | . . 90 Electromagnetic 506 | . 282 224 Impact . | . . . Slashing . | . . . Piercing . | . . . Highest Corruption . | . . . Average Corruption . | . . . Corruption Purged . | . . . Corruption Blocked . | . . . Overload Shots . | . . . Overflow Damage 4 | . 4 . Projectiles 4 | . 4 . Explosions . | . . . Melee . | . . . Knockbacks . | . . . Impact . | . . . Kinetic . | . . . Secondary . | . . . Self-Inflicted Damage 110 | . 69 41 Shots 3 | . 1 2 Rammed . | . . . Targets Rammed . | . . . Kicked . | . . . Crushed . | . . . Highest Temperature 225 | 195 225 165 Average Temperature 63 | 71 58 67 Received Heat Transfer 54 | . 27 27 Effects 1 | . 1 . Interference 1 | . 1 . Siege Activations . | . . . Robots Corrupted . | . . . Combat Hostiles . | . . . Parts Fried 1 | . 1 . Impact Corruptions . | . . . Robots Melted . | . . . Combat Hostiles . | . . . Parts Melted 2 | 2 . . Heat Transferred 1334 | 703 346 285 Parts Sabotaged . | . . . Parts Stolen . | . . . Parts Stripped . | . . . Power Chain Reactions 1 | . . 1 Missiles Intercepted . | . . . Alert | -11 -10 -10 ------- Run | Jun Mat Min Peak Influence 145 | 25 145 144 Initial 23 | . 16 23 Average 62 | 10 61 89 Maximum Alert Level . | . . . Low Security (%) 100 | 100 100 100 Level 1 . | . . . Level 2 . | . . . Level 3 . | . . . Level 4 . | . . . Level 5 . | . . . High Security . | . . . Max Security . | . . . Squads Dispatched 1 | . 1 . Investigation . | . . . Extermination . | . . . Reinforcement 1 | . 1 . Assault . | . . . Garrison . | . . . Intercept . | . . . Searches Triggered . | . . . Construction Impeded . | . . . Haulers Reinforced . | . . . Active Scanning Responses . | . . . Cargo Convoy Interrupts . | . . . Stealth | -11 -10 -10 --------- Run | Jun Mat Min Distress Signals 1 | . 1 . Communications Jammed . | . . . Distress Signals . | . . . Times Spotted 35 | . 21 14 Peak Tracking Total 4 | . 4 4 Tactical Retreats 4 | . 3 1 Traps | -11 -10 -10 ------- Run | Jun Mat Min Traps Triggered . | . . . Indirectly . | . . . Trap Hack Attempts . | . . . Triggered . | . . . Disarmed . | . . . Reprogrammed . | . . . Reused . | . . . Traps Extracted . | . . . Installed . | . . . Triggered . | . . . Machines | -11 -10 -10 ---------- Run | Jun Mat Min Machines Disabled 4 | . 4 . Max in Single Turn 4 | . 4 . Machines Repaired . | . . . Machines Sabotaged . | . . . Overloaded Fab Kills . | . . . Hacking | -11 -10 -10 --------- Run | Jun Mat Min Machines Accessed 11 | . 10 1 Terminals 7 | . 7 . Fabricators . | . . . Repair Stations 1 | . 1 . Recycling Units 2 | . 2 . Scanalyzers . | . . . Garrison Access . | . . . Total Hacks 42 | . 41 1 Successful 25 | . 24 1 Failed 17 | . 17 . Catastrophic 1 | . 1 . Database Lockouts . | . . . Manual 20 | . 20 . Terminals 27 | . 27 . Fabricators . | . . . Repair Stations 8 | . 8 . Recycling Units 6 | . 6 . Scanalyzers . | . . . Garrison Access . | . . . Terminal Hacks 11 | . 10 1 Robot Analysis 4 | . 4 . Prototype ID Bank 2 | . 2 . Open Door 1 | . . 1 Terminal Index 1 | . 1 . Unreport Threat 1 | . 1 . Locate Traps 2 | . 2 . Fabricator Hacks . | . . . Repair Station Hacks 6 | . 6 . Scan Component 3 | . 3 . Repair 3 | . 3 . Recycling Unit Hacks 2 | . 2 . Report Inventory 1 | . 1 . Retrieve Components 1 | . 1 . Scanalyzer . | . . . Garrison Access Hacks . | . . . Unauthorized Hacks 6 | . 6 . Terminals 4 | . 4 . Track 1 | . 1 . Botnet 2 | . 2 . Operators 1 | . 1 . Fabricators . | . . . Repair Stations . | . . . Recycling Units 2 | . 2 . Reject 1 | . 1 . Mask 1 | . 1 . Scanalyzers . | . . . Garrison Access . | . . . Data Cores Recovered . | . . . Used . | . . . Hacking Detections 10 | . 10 . Full Trace Events . | . . . Feedback Events . | . . . Feedback Blocked . | . . . Robot Schematics Acquired . | . . . Robots Built . | . . . Authchips . | . . . Time . | . . . Total Robot Build Rating . | . . . Part Schematics Acquired . | . . . Parts Built . | . . . Authchips . | . . . Time . | . . . Total Part Build Rating . | . . . Parts Repaired 3 | . 3 . Time 115 | . 115 . Parts Recycled . | . . . Recycled Matter . | . . . Retrieved Matter . | . . . Retrieved Components 4 | . 4 . Parts Scanalyzed . | . . . Part Schematics Acquired . | . . . Parts Damaged . | . . . Bothacking | -11 -10 -10 ------------ Run | Jun Mat Min Used RIF Installer . | . . . Robots Hacked . | . . . Non-combat . | . . . Combat . | . . . Robot Hacks Applied . | . . . Relay Couplers Released . | . . . Fabnet Peak Effective % . | . . . Robots Rewired . | . . . Allies Hacked . | . . . Hacks Repelled . | . . . Allies | -11 -10 -10 -------- Run | Jun Mat Min Total Allies . | . . . Largest Group . | . . . Highest-Rated Group . | . . . Highest-Rated Ally . | . . . Total Orders . | . . . Ally Attacks . | . . . Total Damage . | . . . Kills . | . . . Allies Corrupted . | . . . Allies Melted . | . . . Intel | -11 -10 -10 ------- Run | Jun Mat Min Robot Analysis Total 4 | . 4 . Derelict Logs Recovered 1 | . . 1 Drone Launches . | . . . Drone Recoveries . | . . . Exploration | -11 -10 -10 ------------- Run | Jun Mat Min Turns Passed 1870 | 154 1361 355 Spaces Moved 1099 | 101 800 198 Core 6 | 6 . . Treads . | . . . Legs 45 | 45 . . Wheels 1048 | 50 800 198 Hover . | . . . Flight . | . . . Fastest Speed 50 | 50 80 130 Average Speed 116 | 98 113 139 Slowest Speed 190 | 190 140 140 Overloaded Moves . | . . . Propulsion Burnouts . | . . . Robots Hopped . | . . . Cave-ins Triggered . | . . . Exploration Rate (%) 45 | 5 90 42 Regions Visited 2 Branch Regions 1 Pre-discovered Areas . | . . . Known Exits Taken . | . . . Unknown Exits Taken 2 | 1 1 . Scrap Searched 1 | . . 1 Spaces Dug 3 | . 3 . Terrain Destroyed 38 | . 19 19 Melee . | . . . Projectile 3 | . 3 . AOE 35 | . 16 19 Terrain Rammed . | . . . Walls Destroyed . | . . . Machines Disabled . | . . . Actions | -11 -10 -10 --------- Run | Jun Mat Min Total 1578 | 135 1201 242 Wait 321 | . 317 4 Move 1097 | 100 799 198 Hop . | . . . Pick Up 42 | 8 30 4 Fast Attach 10 | 9 1 . Attach 11 | . 1 10 Detach 1 | 1 . . Swap 19 | 3 11 5 Drop 23 | 5 15 3 Fire 54 | 9 27 18 Melee . | . . . Ram . | . . . Kick . | . . . Crush . | . . . Escape Stasis . | . . . Rewire . | . . . Trap . | . . . Miscellaneous . | . . . Route ------- -11/Junkyard -10/Materials (discovered 4 exits: [*Mat x2] / *Min x2) -10/Mines (discovered 2 exits: [*Mat x2]) History --------- Turn | Location | Event 7 | -11/Junkyard | Discovered new exit (range 16) 155 | -11/Junkyard | Entered Materials 244 | -10/Materials | Discovered new exit (range 16) 317 | -10/Materials | Build established: Mutant 403 | -10/Materials | Discovered new exit (range 16) 457 | -10/Materials | Discovered new exit (range 12) 1077 | -10/Materials | Repaired Cld. Ion Engine 1110 | -10/Materials | Repaired EM Shotgun 1143 | -10/Materials | Repaired Beam Rifle 1175 | -10/Materials | Discovered new exit (range 16) 1516 | -10/Materials | Entered Mines 1541 | -10/Mines | Discovered new exit (range 7) 1572 | -10/Mines | Joined a pair of Derelicts in attacking an 0b10 outpost 1690 | -10/Mines | Found the Drone Emporium 1699 | -10/Mines | Found Prototype Device 1707 | -10/Mines | Identified Splice Drone Bay 1741 | -10/Mines | Discovered new exit (range 14) 1776 | -10/Mines | Assembled infested the area 1819 | -10/Mines | Core integrity fell below 50% 1840 | -10/Mines | Core integrity fell below 20% 1857 | -10/Mines | Lost 10 parts (1p2n2u5w) 1871 | -10/Mines | Destroyed by as-25046 with Assembled Heavy Rifle Last Messages --------------- 01845_ as-79834 destroyed. 01846_ The unstable cave ceiling collapses. 01847_ U-05 Engineer lays Concrete. 01848_ The unstable cave ceiling collapses. 01848_ U-05 Engineer lays Concrete. 01849_ U-05 Engineer builds a Wall. 01849_ U-05 Engineer lays Concrete. 01850_ The unstable cave ceiling collapses. 01850_ U-05 Engineer lays Concrete. 01851_ The unstable cave ceiling collapses. 01851_ U-05 Engineer lays Concrete. 01852_ Acquired 25 matter. 01853_ U-05 Engineer lays Concrete. 01855_ Acquired Mni. Grenade Launcher. 01856_ U-05 Engineer lays Concrete. 01858_ U-05 Engineer builds a Wall. 01861_ as-94252 sneak attacks. 01861_ U-05 Engineer destroyed. 01861_ as-94252 destroyed. 01869_ as-77537 destroyed. Map ----- +----------------------------------------------------+ | ?????????????????????????????????????????????????? | | ?????????????????????????????????????????????????# | | ???????????????????????????????????????????####### | | ??????????????????????????????????????????##%=%"## | | ??????????????????????????????????????????#]]=!]!# | | ??????????????????????????????????????????#!! !# | | ??????????????????????????????????????????## ## | | ??????????????????????????????????????????###++### | | ??????????????????????????????????????????# | | ??????????????????????????????????????????# | | ?????????????????????????????????????????## | | ?????????????????????????????????????????# | | ?????????????????????????????????????????# | | ?????????????????????????????????????????# | | ?????????????????????????????????????????## | | ?????????????????????????????????????????## | | ?????????????????????????????????????????# | | ?????????????????????????????????????????# # | | ?????????????????????????????????????????# # | | ??????????????????###????????????????????# ## | | ??????????????????# ###??????????????????## #? | | ?????????????????? #??????????????? #??### ## | | ??????????????????# #??########$ ?????## # | | ?????????????##?### % #### ???????????## | | ?????????????#### # # #?????????????????# | | ?????????????# # @ #????????????????## | | ????????????## # %## #???????????????## # | | ????????????# ### ! ## #??????????????## ## | | ????????????# ## !a ## #?????????????## ### | | ????????????## # =% # #?????????????# | | ????????????# # # ! # #????????????## | | ????????????# ## # #?????????#### #### | | ????????????## #### #????????## ##### | | ?????????????### ##### ##???????# | | ??????????????### #??????## | | ????????????????## ######## #?????## ######### | | ?????????????????## #??????# #?????# ##???????? | | ??????????????????# #??????# #????## #??????### | | ??????????????????# #??????# #???## #?????## | | ?????????????????? #??????# #??## ####### | | ??????????????????###??????#[#??# ###""## | | ???????????????????????????#!#### ###" #X | | ???????????????????????????#%=%! #?#" ! # | | ???????????????????????????#=#### ##" ## | | ???????????????????????????# #??## ##" # ## | | ??????????????????????????? #???#### ###""## # | | ?????????????????????????? ??????# #?####### | | ?????????????????????????# ??????# #??????# | | ?????????????????????????## ??????# #??????# | | ?????????????????????????? ??????? #??????## | +----------------------------------------------------+ Best States ------------- Heat Dissipation 25 Energy Generation 14 Energy Capacity 280 Matter Stores 300 Matter Capacity 300 Sight Range 16 Terrain Scan Range 16 Terrain Scan Density 10 Armor Coverage 150 Evasion (%) 50 Authchip Count 1 Item Schematics ----------------- None Robot Schematics ------------------ None Fabricated ------------ Nothing Alien Tech Used ----------------- None Achievements -------------- None Challenges ------------ None Game ------ Seed ControlMomentumDevice Manual? 0 Play Time 00:20:28 Cumulative 588.7 hours Start 2023.03.24 @ 15:51:41 End 2023.03.24 @ 21:17:28 Sessions 1 Manual Loads 0 Difficulty Rogue Special Mode None Game No. 413 Rogue 413 Adventurer 0 Explorer 0 Win Type - Total 1 Types 1/0/0/0/0/0/0/0/0 Lore% 70 Gallery% 78 Achievement% 58 Wizard Run 0 Options --------- ASCII 0 Keyboard 0 Movement Mouse Keybinds 0 Fullscreen 1 Font 16/SmallcapsGlow Map View 75x55 Tactical HUD 1 Map Filters NONE Filters NONE Steam 1 RUN: c32bbf77-e369-44d0-8b7e-c7655c1bba30